Cogmind - Beta 16.1 @@@ ROGUE MODE // 2026.02.13 @ 07:58:33 Player: Kranker Result: Destroyed by as-90707 with Assembled Maul Performance ------------- Evolutions (0) 0 Regions Visited (2) 400 Robots Destroyed (4) 20 Value Destroyed (122) 122 Prototype IDs (0) 0 Alien Tech Used (0) 0 Bonus (0) 0 TOTAL SCORE: 542 Bonus ------- None Cogmind --------- Core Integrity 0/250 Matter 190/300 Energy 92/100 System Corruption 12% Temperature Cool (20) Movement Core (50) Location -10/Mines Parts ------- > --- POWER (1) -------- (None) > --- PROPULSION (2) --- (None) > --- UTILITY (2) ------ (None) > --- WEAPON (2) ------- (None) > --- INVENTORY (5) ---- Light Ion Engine Assault Rifle Peak State ------------ > --- POWER ------------ Light Ion Engine > --- PROPULSION ------- Aluminum Leg Aluminum Leg > --- UTILITY ---------- Improved Heat Sink > --- WEAPON ----------- Assault Rifle Grenade Launcher > --- INVENTORY -------- (None) [Rating: 8] Favorites ----------- Power Light Ion Engine Engine Light Ion Engine Propulsion Aluminum Leg Leg Aluminum Leg Wheel Wheel Utility Improved Heat Sink Device Improved Heat Sink Storage Small Matter Pod Weapon Assault Rifle Ballistic Gun Assault Rifle Launcher Grenade Launcher Slashing Weapon Mining Claw Build | -11 -10 -10 ------- Run | Yrd Mat Min Slots Evolved . | . . . Power . | . . . Propulsion . | . . . Utility . | . . . Weapon . | . . . Parts Attached 15 | 7 5 3 Power 2 | 1 1 . Engine 2 | 1 1 . Core . | . . . Reactor . | . . . Propulsion 4 | 4 . . Treads . | . . . Leg 2 | 2 . . Wheel 2 | 2 . . Hover . | . . . Flight . | . . . Utility 3 | . 1 2 Device 2 | . 1 1 Storage 1 | . . 1 Processor . | . . . Hackware . | . . . Protection . | . . . Artifact . | . . . Weapon 6 | 2 3 1 Energy Gun . | . . . Energy Cannon . | . . . Ballistic Gun 4 | 2 1 1 Ballistic Cannon . | . . . Launcher 1 | . 1 . Special Weapon . | . . . Impact Weapon . | . . . Slashing Weapon 1 | . 1 . Piercing Weapon . | . . . Special Melee Weapon . | . . . Unidentified Prototypes . | . . . Parts Lost 10 | . 1 9 Power 1 | . . 1 Propulsion 3 | . 1 2 Utility 3 | . . 3 Weapon 3 | . . 3 Highest Loss Streak 9 | . 1 9 To Critical Strikes . | . . . Average Backups 2 | 2 2 2 Power . | . . 1 Propulsion 1 | 1 . . Utility . | . . . Weapon . | . . 1 Tool/Special . | . . . Unused Backups . | . . . Power . | . . . Propulsion . | . . . Utility . | . . . Weapon . | . . . Tool/Special . | . . . Average Slot Usage (%) 72 | . 74 64 Engine 13 | . 14 12 Leg 16 | . 15 24 Wheel 7 | . 9 . Device 7 | . 7 6 Ballistic Gun 19 | . 20 14 Launcher 7 | . 7 8 Peak Build Rating 8 | 5 8 8 Average Rating 5 | 3 6 5 On Entrance 4 | . 5 8 Avg Prop Armor Cover (%) . | . . . Naked Turns 3 | . . 3 Heaviest Build 12 | 7 11 12 Greatest Support 20 | 20 20 20 Greatest Overweight (x) . | . . . Average Overweight (x) . | . . . Largest Inventory Capacity 5 | 5 5 5 Average Capacity 5 | 5 5 5 Most Carried 5 | 5 5 5 Average Carried 2 | 2 2 2 Final Capacity 5 | 5 5 5 Final Carried 3 | 3 3 2 Class Distribution -------------------- 100% | Mutant Dominant Class ---------------- Mutant | -10/Materials Mutant | -10/Mines Resources | -11 -10 -10 ----------- Run | Yrd Mat Min Matter Collected 446 | 317 86 43 Remotely . | . . . Salvage Created 141 | 34 86 21 Parts 8 | 2 3 3 Haulers Intercepted . | . . . Recyclers Shooed . | . . . Parts Field Recycled . | . . . Retrieved Matter . | . . . Parts Self-Destructed . | . . . Prevented . | . . . Parts Restored . | . . . Kills | -11 -10 -10 ------- Run | Yrd Mat Min Combat Hostiles Destroyed 4 | 1 2 1 Guns 3 | 1 2 . AOE 1 | . . 1 Classes Destroyed 3 | 1 . 2 Tunneler 1 | . . 1 Grunt 3 | 1 2 . Assembled 1 | . . 1 Best Kill Streak 1 | 1 1 1 Combat Bots Only 1 | 1 1 1 Max Kills in Single Turn 1 | 1 1 1 Gunslinging . | . . . Exploded 1 | . . 1 Melee . | . . . Uniques/NPCs Destroyed . | . . . Combat | -11 -10 -10 -------- Run | Yrd Mat Min Hostile Shots Fired 76 | 11 23 42 Missed 13 | 2 4 7 Hits 63 | 9 19 35 Melee 11 | . . 11 Projectile 52 | 9 19 24 Critical Strikes 2 | . 1 1 Part Disruptions 3 | . . 3 Damage Taken 1007 | 97 275 635 Core 264 | 45 81 138 Absorbed by Shields . | . . . Core Remaining (%) 82 | 82 . . Volleys Fired 26 | 7 14 5 Largest 2 | 2 2 2 Hottest 50 | 40 40 50 Shots Fired 49 | 14 28 7 Gun 47 | 14 28 5 Cannon . | . . . Launcher 2 | . . 2 Special . | . . . Kinetic 47 | 14 28 5 Thermal . | . . . Explosive 2 | . . 2 Electromagnetic . | . . . Robot Hit Streak 5 | 2 5 1 Robot Miss Streak 4 | 3 4 3 Penetration Max . | . . . Secondary Targets 1 | . 1 . Max Gunslinging Chain 1 | . 1 . Shots Hit Robots 19 | 5 13 1 Core Hits 13 | 2 5 6 Critical Kills . | . . . Critical Parts Destroyed . | . . . Critical Strikes . | . . . Melee Attacks 1 | . . 1 Impact . | . . . Slashing 1 | . . 1 Piercing . | . . . Sneak Attacks . | . . . Combat Hostiles . | . . . Follow-up Attacks . | . . . Damage Inflicted 482 | 79 177 226 Guns 285 | 79 177 29 Cannons . | . . . Explosions 196 | . . 196 Melee . | . . . Ramming 1 | . . 1 Kinetic 285 | 79 177 29 Thermal . | . . . Explosive 196 | . . 196 Electromagnetic . | . . . Impact . | . . . Slashing . | . . . Piercing . | . . . Highest Corruption 12 | . . 12 Average Corruption 5 | . . 5 Corruption Purged . | . . . Corruption Blocked . | . . . Effects 1 | . . 1 Matter Fused 1 | . . 1 Overload Shots . | . . . Overflow Damage 7 | . . 7 Projectiles . | . . . Explosions 7 | . . 7 Melee . | . . . Knockbacks . | . . . Impact . | . . . Kinetic . | . . . Secondary . | . . . Self-Inflicted Damage 59 | . . 59 Shots 2 | . . 2 Rammed 1 | . . 1 Targets Rammed 1 | . . 1 Kicked . | . . . Crushed . | . . . Highest Temperature 68 | . 20 68 Average Temperature 17 | . 5 33 Received Heat Transfer 611 | 54 177 380 Siege Activations . | . . . Martial Activations . | . . . Shielding Activations . | . . . Robots Disrupted . | . . . Combat Hostiles . | . . . Robots Corrupted . | . . . Combat Hostiles . | . . . Parts Fried . | . . . Impact Corruptions . | . . . Robots Melted . | . . . Combat Hostiles . | . . . Parts Melted . | . . . Heat Transferred . | . . . Parts Sabotaged . | . . . Parts Stolen . | . . . Parts Stripped . | . . . Power Chain Reactions . | . . . Alert | -11 -10 -10 ------- Run | Yrd Mat Min Maximum Alert Level . | . . . Low Security (%) 100 | 100 100 100 Level 1 . | . . . Level 2 . | . . . Level 3 . | . . . Level 4 . | . . . Level 5 . | . . . High Security . | . . . Max Security . | . . . Peak Influence 33 | 20 33 15 Initial 13 | . 13 . Average 4 | 1 6 3 Influence Increases 93 | 20 50 23 Destroy 0b10 Robot/C 60 | 20 40 . Destroy 0b10 Robot/NC 5 | . . 5 Destroy Leader 10 | . 10 . Destroy Structure 18 | . . 18 Influence Decreases 93 | . 70 23 Entered New Map 7 | . 7 . Time Decay 63 | . 53 10 Lost Part 23 | . 10 13 Squads Dispatched . | . . . Investigation . | . . . Extermination . | . . . Reinforcement . | . . . Assault . | . . . Garrison . | . . . Intercept . | . . . Searches Triggered . | . . . Construction Impeded . | . . . Haulers Reinforced . | . . . Active Scanning Responses . | . . . Cargo Convoy Interrupts . | . . . Stealth | -11 -10 -10 --------- Run | Yrd Mat Min Distress Signals . | . . . Communications Jammed . | . . . Distress Signals . | . . . Times Spotted 18 | 1 2 15 Peak Tracking Total 20 | 1 2 20 Tactical Retreats 1 | . . 1 Traps | -11 -10 -10 ------- Run | Yrd Mat Min Traps Triggered . | . . . Indirectly . | . . . Trap Hack Attempts . | . . . Triggered . | . . . Disarmed . | . . . Reprogrammed . | . . . Reused . | . . . Traps Extracted . | . . . Installed . | . . . Triggered . | . . . Machines | -11 -10 -10 ---------- Run | Yrd Mat Min Machines Disabled . | . . . Max in Single Turn . | . . . Machines Repaired . | . . . Machines Dismantled . | . . . Machines Sabotaged . | . . . Overloaded Fab Kills . | . . . Hacking | -11 -10 -10 --------- Run | Yrd Mat Min Machines Accessed . | . . . Terminals . | . . . Fabricators . | . . . Repair Stations . | . . . Recycling Units . | . . . Scanalyzers . | . . . Garrison Access . | . . . Total Hacks . | . . . Successful . | . . . Failed . | . . . Catastrophic . | . . . Database Lockouts . | . . . Manual . | . . . Terminals . | . . . Fabricators . | . . . Repair Stations . | . . . Recycling Units . | . . . Scanalyzers . | . . . Garrison Access . | . . . Terminal Hacks . | . . . Fabricator Hacks . | . . . Repair Station Hacks . | . . . Recycling Unit Hacks . | . . . Scanalyzer . | . . . Garrison Access Hacks . | . . . Unauthorized Hacks . | . . . Terminals . | . . . Fabricators . | . . . Repair Stations . | . . . Recycling Units . | . . . Scanalyzers . | . . . Garrison Access . | . . . Data Cores Recovered . | . . . Used . | . . . Hacking Detections . | . . . Full Trace Events . | . . . Feedback Events . | . . . Feedback Blocked . | . . . Robot Schematics Acquired . | . . . Robots Built . | . . . Authchips . | . . . Time . | . . . Total Robot Build Rating . | . . . Part Schematics Acquired . | . . . Parts Built . | . . . Authchips . | . . . Time . | . . . Total Part Build Rating . | . . . Part Studies Acquired . | . . . Parts Repaired . | . . . Time . | . . . Parts Recycled . | . . . Recycled Matter . | . . . Retrieved Matter . | . . . Retrieved Components . | . . . Parts Scanalyzed . | . . . Part Schematics Acquired . | . . . Parts Damaged . | . . . Bothacking | -11 -10 -10 ------------ Run | Yrd Mat Min Used RIF Installer . | . . . Robots Hacked . | . . . Non-combat . | . . . Combat . | . . . Robot Hacks Applied . | . . . Relay Couplers Released . | . . . Fabnet Peak Effective % . | . . . Robots Rewired . | . . . Allies Hacked . | . . . Hacks Repelled . | . . . Allies | -11 -10 -10 -------- Run | Yrd Mat Min Total Allies . | . . . Largest Group . | . . . Highest-Rated Group . | . . . Highest-Rated Ally . | . . . Total Orders . | . . . Ally Attacks . | . . . Total Damage . | . . . Kills . | . . . Allies Corrupted . | . . . Allies Melted . | . . . Intel | -11 -10 -10 ------- Run | Yrd Mat Min Active Infowar (turns) 14 | . . 14 Terrain 14 | . . 14 Robot Analysis Total . | . . . Derelict Logs Recovered . | . . . Drone Launches . | . . . Drone Recoveries . | . . . Exploration | -11 -10 -10 ------------- Run | Yrd Mat Min Turns Passed 419 | 112 252 55 Spaces Moved 287 | 74 188 25 Core 23 | 23 . . Treads . | . . . Legs 134 | . 109 25 Wheels 130 | 51 79 . Hover . | . . . Flight . | . . . Fastest Speed 50 | 50 80 120 Average Speed 96 | 70 103 120 Slowest Speed 120 | 80 120 120 Overloaded Moves . | . . . Propulsion Burnouts . | . . . Robots Hopped . | . . . Potential Cave-ins . | . . . Cave-ins Triggered . | . . . Exploration Rate (%) 16 | 5 31 14 Regions Visited 2 Branch Regions 1 Pre-discovered Areas . | . . . Known Exits Taken . | . . . Unknown Exits Taken 2 | 1 1 . Scrap Searched 1 | . . 1 Spaces Dug . | . . . Terrain Destroyed 18 | . . 18 Melee . | . . . Projectile . | . . . AOE 18 | . . 18 Terrain Rammed . | . . . Walls Destroyed . | . . . Machines Disabled . | . . . Actions | -11 -10 -10 --------- Run | Yrd Mat Min Total 374 | 116 218 40 Wait 18 | 17 . 1 Move 285 | 73 187 25 Hop . | . . . Pick Up 15 | 8 5 2 Fast Attach . | . . . Attach 14 | 6 5 3 Detach 1 | . 1 . Swap 10 | 5 3 2 Drop 3 | . 3 . Fire 26 | 7 14 5 Melee 1 | . . 1 Ram 1 | . . 1 Kick . | . . . Crush . | . . . Escape Stasis . | . . . Rewire . | . . . Trap . | . . . Miscellaneous . | . . . Route ------- -11/Scrapyard -10/Materials -10/Mines History --------- Turn | Location | Event 2 | -11/Scrapyard | Met Revision 17 82 | -11/Scrapyard | Discovered new exit (range 8) 113 | -11/Scrapyard | Entered Materials 164 | -10/Materials | Core integrity fell below 50% 303 | -10/Materials | Build established: Mutant 306 | -10/Materials | Discovered new exit (range 11) 365 | -10/Materials | Entered Mines 366 | -10/Mines | Assembled infested the area 418 | -10/Mines | Core integrity fell below 20% 418 | -10/Mines | System corruption reached 10% 420 | -10/Mines | Destroyed by as-90707 with Assembled Maul Last Messages --------------- 00398_ System corrupted by crushing effect (+4). 00399_ Grenade Launcher destroyed. 00402_ as-45384 destroyed. 00409_ Terrain Scanner destroyed. 00409_ System corrupted by crushing effect (+2). 00409_ Knocked back. 00412_ Ion Engine destroyed. 00413_ Knocked back. 00416_ Aluminum Leg destroyed. 00416_ Assault Rifle destroyed. 00416_ System corrupted by crushing effect (+3). 00417_ System corrupted: Matter fused (-7). 00417_ Aluminum Leg destroyed. 00417_ Mining Claw destroyed. 00417_ System corrupted by crushing effect (+3). 00417_ Knocked back. 00419_ Slammed into as-41760. Ramming works as a last resort when unarmed or blocked, but can have serious negative consequences. Map ----- +----------------------------------------------------+ | ?????????????????????????????????????????????????? | | ?????????????????????????????????????????????????? | | ?????????????????????????????????????????????????? | | ?????????????????????????????????????????????????? | | ?????????????????????????????????????????????????? | | ?????????????????????????????????????????????????? | | ?????????????????????????????????????????????????? | | ?????????????????????????????????????????????????? | | ?????????????????????????????????###?????????????? | | ?????????????????????????????????# ?????????????? | | ????????????????????? ???????????# #?????????????? | | ?????????????????????? ???????## #?????????????? | | ????????????????????????# ?????# #?#???????????? | | ?????????????????????????# #### #?????????????? | | ?????????????????####???????? #######???????? | | ????????????????## ###????????## ## ##??????? | | ????????????????# #????#### =!# ##?????? | | ????????????????# ##??# * = ##????? | | ?????????????????# ####! #????? | | ?????????????????? ?# ] ##### #??? | | ???????????????????? ?# #???# #?? | | ?????????????????????# #?# % #???# ## #?? | | ??????????????????????# ### #???# # ?# ##?? | | ??????????????????????# a### ##??###?#?####??? | | ?????????????????#????## a aa #??????????????? | | ???????????????????????# @a a #??????????????? | | ???????????????????????# aa ##??????????????? | | ??????????????????????# ##???????????????? | | ?????????????????????# a #????????????????? | | ????????????????????# ## #????????????????? | | ????????????????????######### ##????????????????? | | ?????????????????#????????#?####?????????????????? | | ?????????????????????????????????????????????????? | | ?????????????????????????????????????????????????? | | ?????????????????????????????????????????????????? | | | | | | | | | | | | | | | | | | | | | | | | | | | | | | | +----------------------------------------------------+ Best States ------------- Heat Dissipation 39 Energy Generation 10 Energy Capacity 250 Matter Stores 272 Matter Capacity 300 Sight Range 16 Terrain Scan Range 14 Terrain Scan Density 10 Evasion (%) 55 Item Schematics ----------------- None Robot Schematics ------------------ None Fabricated ------------ Nothing Repaired ---------- Nothing Studied --------- None Alien Tech Used ----------------- None Achievements -------------- Hunted Challenges ------------ None Game ------ Seed DirtyAnalysisMask Manual? 0 Play Time 00:21:38 Cumulative 6.8 hours Start 2026.02.13 @ 07:05:17 End 2026.02.13 @ 07:58:33 Sessions 1 Manual Loads 0 Difficulty Rogue Special Mode None Game No. 19 Rogue 19 Adventurer 0 Explorer 0 Win Type - Total 0 Types 0/0/0/0/0/0/0/0/0/0 Lore% 1 Gallery% 8 Achievement% 6 Wizard Run 0 Options --------- Layout 1 ASCII 0 Keyboard 0 Movement Mouse Keybinds 0 Fullscreen 1 Font 24/Smallcaps Map View 50x35 Zoom Use 0% Tactical HUD 1 Map Filters NONE Filters NONE Steam 1 RUN: a56cd1fb-75cc-45e4-b5d4-88ab10f24755